[Event "*** SCC Grand Prix: Titled Tuesday Blitz"]
[Site "Chess.com"]
[Date "2020.08.25"]
[Round "8"]
[White "Misticpikachu"]
[Black "RodinMihail"]
[Result "0-1"]
[WhiteElo "2318"]
[BlackElo "2489"]
[TimeControl "180+1"]
[EndTime "11:37:12 PDT"]
[Termination "RodinMihail won on time"]

1. c4 {[%clk 0:03:00.9]} 1... e6 {[%clk 0:02:59.8]} 2. Nf3 {[%clk 0:03:00.5]}
2... d5 {[%clk 0:02:59.8]} 3. e3 {[%clk 0:02:59.9]} 3... Nf6 {[%clk 0:02:59.9]}
4. Nc3 {[%clk 0:03:00.1]} 4... c6 {[%clk 0:03:00.5]} 5. b3 {[%clk 0:03:00.6]}
5... Nbd7 {[%clk 0:03:00.9]} 6. Bb2 {[%clk 0:03:01.1]} 6... Bd6 {[%clk
0:03:01.5]} 7. Qc2 {[%clk 0:03:01.7]} 7... O-O {[%clk 0:03:01.5]} 8. Rg1 {[%clk
0:03:02.3]} 8... e5 {[%clk 0:02:59.9]} 9. g4 {[%clk 0:03:02.6]} 9... e4 {[%clk
0:02:56]} 10. Nd4 {[%clk 0:03:02.5]} 10... Ne5 {[%clk 0:02:46.7]} 11. Be2 {[%clk
0:02:57.8]} 11... Bxg4 {[%clk 0:02:35.9]} 12. Bxg4 {[%clk 0:02:51.9]} 12...
Nexg4 {[%clk 0:02:35.4]} 13. h3 {[%clk 0:02:45.2]} 13... Ne5 {[%clk 0:02:29]}
14. O-O-O {[%clk 0:02:25.5]} 14... Nd3+ {[%clk 0:02:24.7]} 15. Kb1 {[%clk
0:02:23.2]} 15... Be5 {[%clk 0:02:24.3]} 16. Nf5 {[%clk 0:02:00.6]} 16... g6
{[%clk 0:02:17.3]} 17. f4 {[%clk 0:01:56]} 17... Nxb2 {[%clk 0:02:07.3]} 18.
fxe5 {[%clk 0:00:41]} 18... Nxd1 {[%clk 0:02:02.6]} 19. Qxd1 {[%clk 0:00:33.1]}
19... Nd7 {[%clk 0:01:53.4]} 20. Qh5 {[%clk 0:00:25.8]} 20... Kh8 {[%clk
0:01:31.9]} 21. Qh6 {[%clk 0:00:22.8]} 21... Rg8 {[%clk 0:01:29]} 22. Nd6 {[%clk
0:00:21.8]} 22... Nxe5 {[%clk 0:01:23.5]} 23. c5 {[%clk 0:00:15.1]} 23... Qf6
{[%clk 0:01:17.4]} 24. Kc2 {[%clk 0:00:04.8]} 24... b6 {[%clk 0:01:14.9]} 25.
Rg5 {[%clk 0:00:04.7]} 25... bxc5 {[%clk 0:01:09.3]} 26. Rh5 {[%clk 0:00:04.6]}
26... Rg7 {[%clk 0:01:00]} 27. Ncxe4 {[%clk 0:00:01.6]} 27... dxe4 {[%clk
0:00:58.4]} 28. Nxe4 {[%clk 0:00:02.5]} 28... Qe6 {[%clk 0:00:28.4]} 29. Ng5
{[%clk 0:00:02.2]} 29... gxh5 {[%clk 0:00:27.9]} 30. Nxe6 {[%clk 0:00:01.6]}
30... fxe6 {[%clk 0:00:26.1]} 31. Qxe6 {[%clk 0:00:02.5]} 31... Ng6 {[%clk
0:00:25.3]} 32. Qxc6 {[%clk 0:00:02.7]} 32... Rf8 {[%clk 0:00:24.3]} 33. Qd5
{[%clk 0:00:02.7]} 33... Rgf7 {[%clk 0:00:21.3]} 34. Qxh5 {[%clk 0:00:02.8]}
34... Rf5 {[%clk 0:00:20.4]} 35. Qh6 {[%clk 0:00:03.3]} 35... Kg8 {[%clk
0:00:19.5]} 36. a3 {[%clk 0:00:03.4]} 36... a5 {[%clk 0:00:18.9]} 37. e4 {[%clk
0:00:03.9]} 37... Rf2 {[%clk 0:00:18.3]} 38. Qe3 {[%clk 0:00:04.3]} 38... Rh2
{[%clk 0:00:11]} 39. Qxc5 {[%clk 0:00:04.7]} 39... Rd8 {[%clk 0:00:11.1]} 40.
Qc4+ {[%clk 0:00:04.8]} 40... Kg7 {[%clk 0:00:10.6]} 41. Qc3+ {[%clk 0:00:05]}
41... Kh6 {[%clk 0:00:11.1]} 42. Qe3+ {[%clk 0:00:04.7]} 42... Kg7 {[%clk
0:00:11.4]} 43. Qc3+ {[%clk 0:00:04.4]} 43... Kf7 {[%clk 0:00:11.9]} 44. Qc7+
{[%clk 0:00:04.4]} 44... Ke8 {[%clk 0:00:11.5]} 45. Qxh2 {[%clk 0:00:04.8]}
45... Ke7 {[%clk 0:00:09.3]} 46. Qe2 {[%clk 0:00:01.4]} 46... Ke6 {[%clk
0:00:09.2]} 47. Qe3 {[%clk 0:00:01.3]} 47... Rc8+ {[%clk 0:00:09.1]} 0-1

[Event "*** SCC Grand Prix: Titled Tuesday Blitz"]
[Site "Chess.com"]
[Date "2020.08.25"]
[Round "8"]
[White "AntonovaNadezhda"]
[Black "chessfrendz"]
[Result "1-0"]
[WhiteElo "2064"]
[BlackElo "2212"]
[TimeControl "180+1"]
[EndTime "11:37:12 PDT"]
[Termination "AntonovaNadezhda won on time"]

1. d4 {[%clk 0:03:00.9]} 1... d5 {[%clk 0:02:57.9]} 2. Nf3 {[%clk 0:03:01.2]}
2... Nf6 {[%clk 0:02:54.2]} 3. e3 {[%clk 0:03:01.6]} 3... Bg4 {[%clk 0:02:49.5]}
4. h3 {[%clk 0:02:59.9]} 4... Bh5 {[%clk 0:02:48.7]} 5. g4 {[%clk 0:03:00]} 5...
Bg6 {[%clk 0:02:48.5]} 6. Ne5 {[%clk 0:03:00.4]} 6... Nbd7 {[%clk 0:02:47.3]} 7.
h4 {[%clk 0:03:00.5]} 7... h5 {[%clk 0:01:55.3]} 8. Nxg6 {[%clk 0:02:59.5]} 8...
fxg6 {[%clk 0:01:55]} 9. g5 {[%clk 0:02:59.7]} 9... Ne4 {[%clk 0:01:50.1]} 10.
Bd3 {[%clk 0:02:59.4]} 10... e5 {[%clk 0:01:45.7]} 11. Nd2 {[%clk 0:02:58.9]}
11... exd4 {[%clk 0:01:42.1]} 12. Nxe4 {[%clk 0:02:56]} 12... dxe4 {[%clk
0:01:39.2]} 13. Bxe4 {[%clk 0:02:56.1]} 13... Ne5 {[%clk 0:01:38.1]} 14. exd4
{[%clk 0:02:53.2]} 14... Nf7 {[%clk 0:01:25.3]} 15. Bxg6 {[%clk 0:02:48.9]}
15... Qd6 {[%clk 0:01:19.3]} 16. Bxh5 {[%clk 0:02:36.5]} 16... g6 {[%clk
0:01:09.6]} 17. Bf3 {[%clk 0:02:30.7]} 17... O-O-O {[%clk 0:01:09]} 18. Be3
{[%clk 0:02:26.6]} 18... Qb4+ {[%clk 0:00:53.8]} 19. Qd2 {[%clk 0:02:18.8]}
19... Qxb2 {[%clk 0:00:53.1]} 20. Ke2 {[%clk 0:02:01.6]} 20... Ne5 {[%clk
0:00:35.2]} 21. Rab1 {[%clk 0:01:36.1]} 21... Nxf3 {[%clk 0:00:30.4]} 22. Rxb2
{[%clk 0:01:30.3]} 22... Nxd2 {[%clk 0:00:29.1]} 23. Kxd2 {[%clk 0:01:30.3]}
23... Bg7 {[%clk 0:00:27.1]} 24. c3 {[%clk 0:01:28.9]} 24... c5 {[%clk
0:00:26.1]} 25. Ke2 {[%clk 0:00:52.9]} 25... cxd4 {[%clk 0:00:24.4]} 26. cxd4
{[%clk 0:00:53]} 26... Bxd4 {[%clk 0:00:24.2]} 27. Rc1+ {[%clk 0:00:48.7]} 27...
Kb8 {[%clk 0:00:24]} 28. Bf4+ {[%clk 0:00:40.3]} 28... Ka8 {[%clk 0:00:23.5]}
29. Rd2 {[%clk 0:00:36.5]} 29... Rde8+ {[%clk 0:00:16.2]} 30. Kf3 {[%clk
0:00:32.4]} 30... Bb6 {[%clk 0:00:14.6]} 31. Bg3 {[%clk 0:00:27.4]} 31... Rhf8+
{[%clk 0:00:13.1]} 32. Kg2 {[%clk 0:00:26]} 32... Rf5 {[%clk 0:00:12.7]} 33.
Rdc2 {[%clk 0:00:23.8]} 33... a5 {[%clk 0:00:11.8]} 34. Rc8+ {[%clk 0:00:22.2]}
34... Rxc8 {[%clk 0:00:11.6]} 35. Rxc8+ {[%clk 0:00:22.7]} 35... Ka7 {[%clk
0:00:12.5]} 36. Rg8 {[%clk 0:00:22.8]} 36... Rd5 {[%clk 0:00:06.7]} 37. Rxg6
{[%clk 0:00:22.4]} 37... Rd2 {[%clk 0:00:07.3]} 38. h5 {[%clk 0:00:19.6]} 38...
Rxa2 {[%clk 0:00:07.6]} 39. h6 {[%clk 0:00:20.1]} 39... Bd4 {[%clk 0:00:06.1]}
40. h7 {[%clk 0:00:20]} 40... b5 {[%clk 0:00:05.2]} 41. Rg8 {[%clk 0:00:17]}
41... b4 {[%clk 0:00:04]} 42. h8=Q {[%clk 0:00:13.8]} 42... Bxh8 {[%clk
0:00:04.2]} 43. Rxh8 {[%clk 0:00:14.4]} 43... b3 {[%clk 0:00:04.5]} 44. Be5
{[%clk 0:00:13]} 44... Re2 {[%clk 0:00:04]} 45. Bf6 {[%clk 0:00:12.4]} 45... a4
{[%clk 0:00:03]} 46. Rh7+ {[%clk 0:00:13]} 46... Kb6 {[%clk 0:00:02.7]} 47. Rh6
{[%clk 0:00:12.7]} 47... Kb5 {[%clk 0:00:02.5]} 48. g6 {[%clk 0:00:12.8]} 48...
Re6 {[%clk 0:00:01.4]} 49. g7 {[%clk 0:00:10.6]} 1-0

[Event "*** SCC Grand Prix: Titled Tuesday Blitz"]
[Site "Chess.com"]
[Date "2020.08.25"]
[Round "8"]
[White "penguingm1"]
[Black "Anton_Demchenko"]
[Result "1/2-1/2"]
[WhiteElo "2989"]
[BlackElo "2851"]
[TimeControl "180+1"]
[EndTime "11:37:15 PDT"]
[Termination "Game drawn by repetition"]

1. d4 {[%clk 0:03:00.9]} 1... Nf6 {[%clk 0:03:00.3]} 2. c4 {[%clk 0:02:59.5]}
2... d6 {[%clk 0:03:00]} 3. Nc3 {[%clk 0:02:59.7]} 3... e5 {[%clk 0:03:00.1]} 4.
Nf3 {[%clk 0:02:51.9]} 4... Nc6 {[%clk 0:02:59.9]} 5. d5 {[%clk 0:02:06.2]} 5...
Ne7 {[%clk 0:02:59]} 6. e4 {[%clk 0:02:06.3]} 6... Ng6 {[%clk 0:02:59.1]} 7. h4
{[%clk 0:02:00.5]} 7... Be7 {[%clk 0:02:59.3]} 8. h5 {[%clk 0:01:51.4]} 8... Nf8
{[%clk 0:02:59.3]} 9. Be2 {[%clk 0:01:49.2]} 9... N8d7 {[%clk 0:02:55]} 10. Nh4
{[%clk 0:01:42.6]} 10... Nc5 {[%clk 0:02:39.1]} 11. Nf5 {[%clk 0:01:29.7]} 11...
Bxf5 {[%clk 0:02:32.3]} 12. exf5 {[%clk 0:01:30]} 12... h6 {[%clk 0:02:31.7]}
13. Be3 {[%clk 0:01:24.6]} 13... O-O {[%clk 0:02:28.3]} 14. Qd2 {[%clk
0:01:12.4]} 14... Nfe4 {[%clk 0:02:20.5]} 15. Nxe4 {[%clk 0:01:07.4]} 15... Nxe4
{[%clk 0:02:21.4]} 16. Qc2 {[%clk 0:01:07.6]} 16... Nc5 {[%clk 0:02:19.2]} 17.
Bxc5 {[%clk 0:00:54.9]} 17... dxc5 {[%clk 0:02:19.1]} 18. Qe4 {[%clk 0:00:53.7]}
18... Bf6 {[%clk 0:02:15.6]} 19. O-O {[%clk 0:00:53.3]} 19... a5 {[%clk
0:02:09.4]} 20. a4 {[%clk 0:00:52.3]} 20... Ra6 {[%clk 0:02:09.2]} 21. Rfd1
{[%clk 0:00:51.6]} 21... Rb6 {[%clk 0:02:09.7]} 22. Rd2 {[%clk 0:00:49.7]} 22...
Qd6 {[%clk 0:02:08.2]} 23. Bd3 {[%clk 0:00:48.3]} 23... Ra8 {[%clk 0:02:03.2]}
24. Rb1 {[%clk 0:00:45.8]} 24... Kf8 {[%clk 0:01:54.8]} 25. b3 {[%clk
0:00:45.7]} 25... Re8 {[%clk 0:01:35.5]} 26. Bc2 {[%clk 0:00:44.1]} 26... Ke7
{[%clk 0:01:35.8]} 27. Re1 {[%clk 0:00:41.5]} 27... Kd8 {[%clk 0:01:36]} 28.
Rde2 {[%clk 0:00:41.6]} 28... Kc8 {[%clk 0:01:35.2]} 29. Qg4 {[%clk 0:00:30.4]}
29... Kb8 {[%clk 0:01:31.8]} 30. f4 {[%clk 0:00:23.9]} 30... e4 {[%clk
0:01:27.8]} 31. Rxe4 {[%clk 0:00:24.2]} 31... Rxe4 {[%clk 0:01:27.6]} 32. Rxe4
{[%clk 0:00:25.1]} 32... Ra6 {[%clk 0:01:23.8]} 33. g3 {[%clk 0:00:20.3]} 33...
Ra8 {[%clk 0:01:21.2]} 34. Qe2 {[%clk 0:00:16.3]} 34... Ka7 {[%clk 0:01:21.5]}
35. Kg2 {[%clk 0:00:16.7]} 35... Rd8 {[%clk 0:01:19]} 36. g4 {[%clk 0:00:14.8]}
36... c6 {[%clk 0:01:19]} 37. Qd2 {[%clk 0:00:13.8]} 37... Kb6 {[%clk
0:01:17.4]} 38. g5 {[%clk 0:00:10.8]} 38... Bd4 {[%clk 0:00:47.2]} 39. Qe2
{[%clk 0:00:07]} 39... cxd5 {[%clk 0:00:40.3]} 40. cxd5 {[%clk 0:00:07.2]} 40...
Qxd5 {[%clk 0:00:36.6]} 41. g6 {[%clk 0:00:05]} 41... fxg6 {[%clk 0:00:32.8]}
42. fxg6 {[%clk 0:00:03.9]} 42... Ka7 {[%clk 0:00:33.2]} 43. Kg3 {[%clk
0:00:04.1]} 43... Rd6 {[%clk 0:00:18]} 44. Re7 {[%clk 0:00:02.5]} 44... Bf6
{[%clk 0:00:15.4]} 45. Re3 {[%clk 0:00:02.7]} 45... Rb6 {[%clk 0:00:09.7]} 46.
Be4 {[%clk 0:00:02.9]} 46... Qd4 {[%clk 0:00:08.5]} 47. Bf3 {[%clk 0:00:03.2]}
47... Rb4 {[%clk 0:00:08.1]} 48. Re4 {[%clk 0:00:02.8]} 48... Qc3 {[%clk
0:00:07.8]} 49. Rxb4 {[%clk 0:00:03.4]} 49... Qxb4 {[%clk 0:00:08.7]} 50. Qc4
{[%clk 0:00:02.6]} 50... Qxc4 {[%clk 0:00:08.8]} 51. bxc4 {[%clk 0:00:03.5]}
51... Kb6 {[%clk 0:00:09.6]} 52. Kg4 {[%clk 0:00:04]} 52... Kc7 {[%clk 0:00:10]}
53. Kf5 {[%clk 0:00:04.5]} 53... b6 {[%clk 0:00:10.5]} 54. Ke6 {[%clk
0:00:04.9]} 54... Bd4 {[%clk 0:00:10]} 55. Bd5 {[%clk 0:00:04.5]} 55... Bf6
{[%clk 0:00:10.9]} 56. Kf7 {[%clk 0:00:04.6]} 56... Bd4 {[%clk 0:00:11.5]} 57.
Ke6 {[%clk 0:00:05.1]} 57... Bf6 {[%clk 0:00:12.3]} 58. Kf7 {[%clk 0:00:05.8]}
58... Bd4 {[%clk 0:00:13.2]} 59. Ke6 {[%clk 0:00:06.5]} 1/2-1/2

[Event "*** SCC Grand Prix: Titled Tuesday Blitz"]
[Site "Chess.com"]
[Date "2020.08.25"]
[Round "8"]
[White "UCantHandleDenker"]
[Black "K_A_S_T_O_R"]
[Result "1/2-1/2"]
[WhiteElo "2586"]
[BlackElo "2716"]
[TimeControl "180+1"]
[EndTime "11:37:19 PDT"]
[Termination "Game drawn by stalemate"]

1. Nf3 {[%clk 0:03:00.9]} 1... c5 {[%clk 0:02:54.3]} 2. g3 {[%clk 0:03:00.4]}
2... b6 {[%clk 0:02:51.5]} 3. Bg2 {[%clk 0:03:00.4]} 3... Bb7 {[%clk 0:02:52.2]}
4. O-O {[%clk 0:03:00.7]} 4... Nf6 {[%clk 0:02:52.7]} 5. c4 {[%clk 0:03:00.9]}
5... e6 {[%clk 0:02:52.6]} 6. Nc3 {[%clk 0:03:01.5]} 6... a6 {[%clk 0:02:52.9]}
7. d4 {[%clk 0:03:01.5]} 7... cxd4 {[%clk 0:02:52.6]} 8. Qxd4 {[%clk 0:03:02.1]}
8... d6 {[%clk 0:02:52.8]} 9. Rd1 {[%clk 0:03:01.6]} 9... Nbd7 {[%clk
0:02:52.8]} 10. Bg5 {[%clk 0:03:01.1]} 10... Be7 {[%clk 0:02:51.3]} 11. Rac1
{[%clk 0:02:58.2]} 11... Rc8 {[%clk 0:02:42.2]} 12. b3 {[%clk 0:02:56.9]} 12...
O-O {[%clk 0:02:39.5]} 13. Qd2 {[%clk 0:02:56.5]} 13... Qc7 {[%clk 0:02:36.1]}
14. Bf4 {[%clk 0:02:55.2]} 14... Ne8 {[%clk 0:02:34.6]} 15. Qe3 {[%clk
0:02:14.7]} 15... Qd8 {[%clk 0:02:07.4]} 16. Bg5 {[%clk 0:01:59.3]} 16... Nef6
{[%clk 0:02:02.4]} 17. Bxf6 {[%clk 0:01:45.9]} 17... Nxf6 {[%clk 0:02:01]} 18.
Nd4 {[%clk 0:01:46.2]} 18... Bxg2 {[%clk 0:01:58.1]} 19. Kxg2 {[%clk 0:01:47.1]}
19... Qc7 {[%clk 0:01:58.2]} 20. a4 {[%clk 0:01:35.4]} 20... Rfe8 {[%clk
0:01:56.4]} 21. Qd3 {[%clk 0:01:29.1]} 21... Nd7 {[%clk 0:01:53.4]} 22. Ne4
{[%clk 0:01:24.8]} 22... Nc5 {[%clk 0:01:50.5]} 23. Qf3 {[%clk 0:01:17.8]} 23...
Red8 {[%clk 0:01:39.4]} 24. Nc2 {[%clk 0:01:15]} 24... Qb7 {[%clk 0:01:17.2]}
25. Nxc5 {[%clk 0:00:59.5]} 25... Qxf3+ {[%clk 0:01:16.5]} 26. Kxf3 {[%clk
0:00:52.3]} 26... bxc5 {[%clk 0:01:17.4]} 27. b4 {[%clk 0:00:51.3]} 27... cxb4
{[%clk 0:01:04.7]} 28. Nxb4 {[%clk 0:00:52.2]} 28... d5 {[%clk 0:00:55.4]} 29.
Nxa6 {[%clk 0:00:23.5]} 29... Rc6 {[%clk 0:00:54.1]} 30. cxd5 {[%clk 0:00:15.2]}
30... Rxa6 {[%clk 0:00:54]} 31. dxe6 {[%clk 0:00:15.7]} 31... fxe6 {[%clk
0:00:19.2]} 32. Rxd8+ {[%clk 0:00:15.3]} 32... Bxd8 {[%clk 0:00:20.1]} 33. Rc8
{[%clk 0:00:15.4]} 33... Rd6 {[%clk 0:00:20.6]} 34. Ra8 {[%clk 0:00:15.2]} 34...
Kf7 {[%clk 0:00:20]} 35. e3 {[%clk 0:00:15.7]} 35... Bb6 {[%clk 0:00:18.7]} 36.
h4 {[%clk 0:00:15.3]} 36... Rd7 {[%clk 0:00:17.5]} 37. a5 {[%clk 0:00:13.7]}
37... Ra7 {[%clk 0:00:14.7]} 38. Rxa7+ {[%clk 0:00:13.6]} 38... Bxa7 {[%clk
0:00:15.2]} 39. Ke4 {[%clk 0:00:13.6]} 39... Kf6 {[%clk 0:00:14.4]} 40. g4
{[%clk 0:00:12.6]} 40... h6 {[%clk 0:00:14.6]} 41. f4 {[%clk 0:00:11.8]} 41...
g6 {[%clk 0:00:13.7]} 42. Kd3 {[%clk 0:00:10.7]} 42... h5 {[%clk 0:00:13.4]} 43.
gxh5 {[%clk 0:00:04.6]} 43... gxh5 {[%clk 0:00:13.1]} 44. Ke4 {[%clk 0:00:05.5]}
44... Bc5 {[%clk 0:00:12.2]} 45. a6 {[%clk 0:00:04.5]} 45... Ba7 {[%clk
0:00:12.3]} 46. Kf3 {[%clk 0:00:04.6]} 46... e5 {[%clk 0:00:10.3]} 47. Ke4
{[%clk 0:00:04.3]} 47... exf4 {[%clk 0:00:09.5]} 48. exf4 {[%clk 0:00:04.9]}
48... Bb6 {[%clk 0:00:09.8]} 49. Kf3 {[%clk 0:00:05.4]} 49... Kf5 {[%clk
0:00:09.6]} 50. Kg2 {[%clk 0:00:05.4]} 50... Kxf4 {[%clk 0:00:08.9]} 51. Kh1
{[%clk 0:00:06.3]} 51... Kg4 {[%clk 0:00:09.2]} 52. a7 {[%clk 0:00:05.9]} 52...
Bxa7 {[%clk 0:00:08.8]} 53. Kg2 {[%clk 0:00:06.6]} 53... Kxh4 {[%clk 0:00:09.1]}
54. Kh1 {[%clk 0:00:07.5]} 54... Kg4 {[%clk 0:00:09.7]} 55. Kg2 {[%clk
0:00:08.3]} 55... h4 {[%clk 0:00:10.6]} 56. Kh1 {[%clk 0:00:09.2]} 56... h3
{[%clk 0:00:11.5]} 57. Kh2 {[%clk 0:00:09.5]} 57... Bb8+ {[%clk 0:00:12]} 58.
Kh1 {[%clk 0:00:10.4]} 58... Bg3 {[%clk 0:00:12.3]} 59. Kg1 {[%clk 0:00:11.3]}
59... h2+ {[%clk 0:00:13.2]} 60. Kh1 {[%clk 0:00:12.2]} 60... Kf3 {[%clk
0:00:13.7]} 1/2-1/2

[Event "*** SCC Grand Prix: Titled Tuesday Blitz"]
[Site "Chess.com"]
[Date "2020.08.25"]
[Round "8"]
[White "IngOscarArdila"]
[Black "ClydeHillKid"]
[Result "0-1"]
[WhiteElo "2188"]
[BlackElo "2348"]
[TimeControl "180+1"]
[EndTime "11:37:21 PDT"]
[Termination "ClydeHillKid won by resignation"]

1. d4 {[%clk 0:03:00.9]} 1... d5 {[%clk 0:02:59.7]} 2. Nf3 {[%clk 0:03:00.5]}
2... Nf6 {[%clk 0:02:59.3]} 3. g3 {[%clk 0:02:59.9]} 3... e6 {[%clk 0:02:54.5]}
4. Bg2 {[%clk 0:03:00]} 4... Be7 {[%clk 0:02:54.4]} 5. O-O {[%clk 0:03:00.4]}
5... O-O {[%clk 0:02:54.5]} 6. Nbd2 {[%clk 0:03:00.3]} 6... Nbd7 {[%clk
0:02:53.3]} 7. Re1 {[%clk 0:02:57.4]} 7... c5 {[%clk 0:02:53.1]} 8. c3 {[%clk
0:02:56.2]} 8... b5 {[%clk 0:02:46.8]} 9. e3 {[%clk 0:02:51.8]} 9... b4 {[%clk
0:02:41.9]} 10. dxc5 {[%clk 0:02:50.9]} 10... Nxc5 {[%clk 0:02:37.5]} 11. Nb3
{[%clk 0:02:36.9]} 11... bxc3 {[%clk 0:02:34.3]} 12. bxc3 {[%clk 0:02:32.8]}
12... Ba6 {[%clk 0:02:30.4]} 13. Nxc5 {[%clk 0:02:22.2]} 13... Bxc5 {[%clk
0:02:31.3]} 14. Nd4 {[%clk 0:02:22.4]} 14... Qd7 {[%clk 0:02:24.8]} 15. Nb3
{[%clk 0:02:18.3]} 15... Bd6 {[%clk 0:02:21.4]} 16. Bb2 {[%clk 0:02:17.2]} 16...
Rfc8 {[%clk 0:02:20.5]} 17. Qd2 {[%clk 0:02:16.2]} 17... Rab8 {[%clk 0:02:18.3]}
18. Rac1 {[%clk 0:02:13.8]} 18... Bc4 {[%clk 0:02:17.8]} 19. Qc2 {[%clk
0:02:04.4]} 19... Qa4 {[%clk 0:02:06.8]} 20. Ra1 {[%clk 0:01:51.7]} 20... Qb5
{[%clk 0:01:49.9]} 21. Bf1 {[%clk 0:01:46.6]} 21... a5 {[%clk 0:01:45.6]} 22.
Rab1 {[%clk 0:01:40.2]} 22... Bxb3 {[%clk 0:01:20.8]} 23. axb3 {[%clk
0:01:24.6]} 23... Qxb3 {[%clk 0:01:19.6]} 24. Qxb3 {[%clk 0:01:20.7]} 24... Rxb3
{[%clk 0:01:20.5]} 25. Ba1 {[%clk 0:01:20.4]} 25... Rcb8 {[%clk 0:01:16.2]} 26.
Rxb3 {[%clk 0:01:19.4]} 26... Rxb3 {[%clk 0:01:17.1]} 27. Bd3 {[%clk 0:01:17.5]}
27... Nd7 {[%clk 0:01:05.2]} 28. Bc2 {[%clk 0:01:13.8]} 28... Rb6 {[%clk
0:00:58.4]} 29. Kf1 {[%clk 0:01:03.1]} 29... g6 {[%clk 0:00:53.2]} 30. Ke2
{[%clk 0:01:02.9]} 30... Kf8 {[%clk 0:00:52.4]} 31. Kd3 {[%clk 0:01:02.8]} 31...
Nc5+ {[%clk 0:00:47.2]} 32. Kd2 {[%clk 0:01:02.8]} 32... Ke7 {[%clk 0:00:39.4]}
33. f3 {[%clk 0:01:02.5]} 33... Be5 {[%clk 0:00:30.2]} 34. Ke2 {[%clk
0:00:49.2]} 34... h5 {[%clk 0:00:28.7]} 35. Rd1 {[%clk 0:00:28.9]} 35... Nb3
{[%clk 0:00:24.1]} 36. Rb1 {[%clk 0:00:27.3]} 36... Nxa1 {[%clk 0:00:21.6]} 37.
Rxb6 {[%clk 0:00:21.3]} 37... Nxc2 {[%clk 0:00:21]} 38. Ra6 {[%clk 0:00:20.5]}
38... Na3 {[%clk 0:00:19]} 39. Rxa5 {[%clk 0:00:18.5]} 39... Nc4 {[%clk
0:00:19.1]} 40. Ra7+ {[%clk 0:00:18.2]} 40... Kf6 {[%clk 0:00:19.2]} 41. Kd3
{[%clk 0:00:18.7]} 41... Bd6 {[%clk 0:00:17.5]} 42. e4 {[%clk 0:00:18.3]} 42...
Ne5+ {[%clk 0:00:16.6]} 43. Ke2 {[%clk 0:00:17.9]} 43... dxe4 {[%clk 0:00:16]}
44. fxe4 {[%clk 0:00:17.3]} 44... Ng4 {[%clk 0:00:16.2]} 45. h3 {[%clk
0:00:16.6]} 45... Ne5 {[%clk 0:00:15.7]} 46. g4 {[%clk 0:00:16.8]} 46... hxg4
{[%clk 0:00:15.7]} 47. hxg4 {[%clk 0:00:17.7]} 47... Nxg4 {[%clk 0:00:16.1]} 48.
c4 {[%clk 0:00:18.1]} 48... Ne5 {[%clk 0:00:16.3]} 49. Ra6 {[%clk 0:00:16.5]}
49... Bc5 {[%clk 0:00:14.1]} 50. Ra5 {[%clk 0:00:15.3]} 50... Bb4 {[%clk
0:00:13.6]} 51. Ra4 {[%clk 0:00:14.8]} 51... Be7 {[%clk 0:00:12]} 52. Ke3 {[%clk
0:00:14.9]} 52... Bc5+ {[%clk 0:00:11.8]} 53. Kf4 {[%clk 0:00:14.7]} 53... g5+
{[%clk 0:00:11.3]} 54. Kg3 {[%clk 0:00:15.1]} 54... Nd3 {[%clk 0:00:10.7]} 55.
Kg4 {[%clk 0:00:13.3]} 55... Ke5 {[%clk 0:00:09.4]} 56. Kxg5 {[%clk 0:00:12.8]}
56... Kxe4 {[%clk 0:00:10]} 57. Kf6 {[%clk 0:00:13.3]} 57... Ne5 {[%clk
0:00:09.2]} 58. Ra5 {[%clk 0:00:12.2]} 58... Bd4 {[%clk 0:00:09.4]} 59. Rxe5+
{[%clk 0:00:08.4]} 59... Bxe5+ {[%clk 0:00:09.5]} 60. Kxf7 {[%clk 0:00:09.3]}
60... Kf5 {[%clk 0:00:08.3]} 61. c5 {[%clk 0:00:09.6]} 61... Bb8 {[%clk
0:00:08]} 62. c6 {[%clk 0:00:10]} 62... e5 {[%clk 0:00:08.3]} 0-1